bitfinex/quotes_SOLUSD_20251130
["timestamp","ask_amount","ask_price","bid_price","bid_amount"]
[1764472194438,3.94441142,135.8,135.78,3.24]
[1764472197858,0.66,135.79,135.78,3.24]
[1764472198052,3.28441142,135.8,135.78,3.24]
[1764472198235,3.94441142,135.8,135.78,3.24]
[1764472200655,0.66,135.8,135.78,3.24]
[1764472200849,3.94441142,135.8,135.78,3.24]
[1764472202453,3.28441142,135.8,135.78,3.24]
[1764472202652,0.66,135.79,135.78,3.24]
[1764472202974,3.94441142,135.79,135.76,7.96586686]
[1764472203171,3.94441142,135.79,135.77,3.24]
[1764472205072,3.94441142,135.8,135.77,11.20514839]
[1764472205748,3.28441142,135.81,135.78,9.40994492]
[1764472205953,3.94441142,135.81,135.78,9.40994492]
[1764472206148,3.28441142,135.81,135.78,9.40994492]
[1764472206353,3.94441142,135.81,135.78,9.40994492]
[1764472206853,3.94441142,135.81,135.78,16.77453204]
[1764472207755,3.94441142,135.87,135.8,12.09435634]
[1764472207949,3.94441142,135.87,135.83,8.80994492]
[1764472208164,3.28441142,135.86,135.83,8.80994492]
[1764472208361,3.28441142,135.86,135.83,9.40994492]
[1764472208671,0.66,135.85,135.84,21.69888969]
[1764472209447,3.28441142,135.87,135.84,41.11032085]
[1764472209745,7.35942015,135.89,135.85,0.6]
[1764472209746,8.01942015,135.89,135.85,0.6]
[1764472209947,0.66,135.88,135.85,9.40994492]
[1764472210473,0.66,135.88,135.86,7.35942015]
[1764472211048,0.66,135.88,135.86,14.71973214]
[1764472211455,2.09897453,135.89,135.86,14.71973214]
[1764472211456,0.66,135.89,135.87,12.04994492]
[1764472212049,0.66,135.89,135.88,2.94822185]
[1764472212871,0.86,135.91,135.88,10.9076089]
[1764472213073,0.66,135.9,135.88,10.3076089]
[1764472214152,2.75897453,135.9,135.88,2.94822185]
[1764472214545,2.09897453,135.9,135.88,2.94822185]
[1764472214749,0.66,135.89,135.88,2.94822185]
[1764472214963,2.29897453,135.91,135.88,2.94822185]
[1764472216578,2.29897453,135.91,135.88,6.18822185]
[1764472217078,0.66,135.9,135.88,6.18822185]
[1764472223999,2.09897453,135.89,135.83,8.80994492]
[1764472224286,2.09897453,135.88,135.84,7.35739563]
[1764472224657,0.66,135.87,135.84,7.35739563]
[1764472225280,0.66,135.87,135.84,15.42857206]
[1764472226882,0.71,135.89,135.85,11.61891945]
[1764472227184,0.71,135.89,135.86,3.24]
[1764472227380,3.44,135.91,135.87,10.90891945]
[1764472227381,22.31492388,135.91,135.87,10.90891945]
[1764472227586,0.2,135.91,135.87,11.61891945]
[1764472227769,0.91,135.91,135.88,0.71]
[1764472228174,0.71,135.9,135.87,33.73058335]
[1764472228657,0.71,135.9,135.88,7.35943479]
[1764472230677,0.71,135.9,135.88,10.59943479]
[1764472230877,0.91,135.91,135.88,10.59943479]
[1764472231176,0.91,135.91,135.88,11.30943479]
[1764472232474,0.2,135.91,135.89,0.71]
[1764472232788,0.2,135.91,135.88,29.00727332]
[1764472232986,0.91,135.91,135.88,29.71727332]
[1764472233488,0.91,135.91,135.88,27.61829879]
[1764472233877,0.91,135.91,135.88,11.30943479]
[1764472235287,0.91,135.91,135.89,9.51994492]
[1764472235288,0.2,135.91,135.89,9.51994492]
[1764472235467,0.2,135.91,135.9,3.24]
[1764472235671,0.2,135.91,135.9,3.95]
[1764472235990,0.2,135.91,135.9,3.24]
[1764472236390,0.2,135.91,135.9,3.95]
[1764472236566,0.2,135.91,135.9,3.24]
[1764472237594,0.91,135.91,135.9,3.24]
[1764472238091,3.00897453,135.91,135.89,3.24]
[1764472238289,0.71,135.9,135.89,3.24]
[1764472238470,2.80897453,135.9,135.87,18.40783853]
[1764472238673,2.80897453,135.9,135.87,21.64783853]
[1764472238887,0.71,135.89,135.87,21.64783853]
[1764472239174,0.71,135.89,135.87,10.59993292]
[1764472240790,8.26783596,135.91,135.87,11.30993292]
[1764472240994,0.71,135.9,135.87,11.30993292]
[1764472242881,2.80897453,135.9,135.87,11.30993292]
[1764472243190,0.71,135.9,135.87,11.30993292]
[1764472244195,0.2,135.91,135.88,9.51994492]
[1764472244694,0.2,135.91,135.89,3.95]
[1764472245279,0.2,135.91,135.89,11.30846703]
[1764472246472,0.91,135.91,135.89,10.59846703]
[1764472246676,0.2,135.91,135.89,10.59846703]
[1764472246870,0.2,135.91,135.89,11.30846703]
[1764472247093,0.2,135.91,135.9,0.71]
[1764472247485,0.2,135.91,135.89,10.59846703]
[1764472247691,0.2,135.91,135.89,11.30846703]
[1764472247912,0.2,135.91,135.9,0.71]
[1764472249197,0.2,135.91,135.9,16.87829664]
[1764472249406,0.2,135.91,135.9,19.82586673]
[1764472256108,0.2,135.91,135.9,19.11586673]
[1764472256604,0.91,135.91,135.9,19.11586673]
[1764472256901,0.91,135.91,135.9,22.35586673]
[1764472257404,0.2,135.91,135.9,22.35586673]
[1764472258109,0.2,135.91,135.9,15.71751501]
[1764472258281,0.2,135.91,135.9,23.07586673]
[1764472258888,0.2,135.91,135.9,22.35586673]
[1764472259395,0.2,135.91,135.9,23.07586673]
[1764472260311,0.2,135.91,135.9,19.40829664]
[1764472261905,0.2,135.91,135.9,20.12829664]
[1764472262112,0.2,135.91,135.9,22.22727117]
[1764472262586,0.2,135.91,135.9,20.12829664]
[1764472268732,0.2,135.91,135.9,20.41261978]
[1764472268896,0.2,135.91,135.9,22.51159431]
[1764472272522,0.2,135.91,135.9,23.68939388]
[1764472272900,0.2,135.94,135.93,9.09426806]
[1764472273221,0.2,135.94,135.93,15.61104216]
[1764472273407,0.2,135.94,135.93,16.33104216]
[1764472273607,0.2,135.94,135.93,13.05426806]
[1764472273798,0.2,135.94,135.93,16.33104216]
[1764472274001,0.91,135.94,135.93,3.24]
[1764472274403,0.2,135.94,135.93,12.04994492]
[1764472274608,0.2,135.94,135.93,23.68776988]
[1764472276126,0.2,135.94,135.93,12.33426806]
[1764472276321,0.2,135.94,135.93,16.33104216]
[1764472277105,0.2,135.94,135.93,13.05426806]
[1764472277310,0.2,135.94,135.93,23.68776988]
[1764472278234,0.2,135.94,135.93,20.41099578]
[1764472279218,0.2,135.94,135.93,17.17099578]
[1764472279519,0.91,135.94,135.93,19.40667264]
[1764472279825,0.91,135.94,135.93,10.59672772]
[1764472281610,0.2,135.94,135.93,10.59672772]
[1764472282610,0.87,135.94,135.93,10.59672772]
[1764472283927,0.87,135.94,135.93,7.35672772]
[1764472286004,0.87,135.94,135.91,7.35781031]
[1764472286211,0.71,135.93,135.91,10.59781031]
[1764472289232,0.71,135.93,135.92,3.24]
[1764472290131,0.71,135.93,135.92,10.59726898]
[1764472297430,0.71,135.93,135.91,10.59781031]
[1764472299057,3.9867741,135.93,135.9,7.35816202]
[1764472299553,0.71,135.92,135.9,7.35816202]
[1764472300251,0.71,135.92,135.9,10.59816202]
[1764472301142,0.71,135.92,135.89,25.75526578]
[1764472301339,0.71,135.92,135.9,3.24]
[1764472301635,0.71,135.93,135.9,3.95]
[1764472301837,0.91,135.94,135.91,0.71]
[1764472302022,0.91,135.94,135.92,3.24]
[1764472302435,0.71,135.93,135.92,3.24]
[1764472303045,0.71,135.93,135.92,10.59726898]
[1764472303649,3.9867741,135.93,135.91,7.35779107]
[1764472304149,0.71,135.92,135.91,7.35779107]
[1764472306648,3.9867741,135.92,135.89,28.99526578]
[1764472307025,0.71,135.91,135.89,28.99526578]
[1764472310058,0.71,135.91,135.89,10.59889322]
[1764472314750,0.71,135.91,135.86,16.308864]
[1764472314953,3.2767741,135.9,135.87,10.59980309]
[1764472315335,0.71,135.89,135.87,10.59980309]
[1764472320734,0.71,135.89,135.87,7.35980309]
[1764472320935,0.71,135.89,135.87,11.29980309]
[1764472321134,0.71,135.91,135.88,0.7]
[1764472321336,0.71,135.91,135.89,3.24]
[1764472321539,0.71,135.92,135.89,3.24]
[1764472321738,0.71,135.92,135.89,3.94]
[1764472322338,0.71,135.92,135.89,11.29855938]
[1764472323771,0.71,135.92,135.89,10.59855938]
[1764472324088,0.71,135.92,135.89,11.29855938]
[1764472324777,0.71,135.93,135.9,0.7]
[1764472324944,0.71,135.92,135.89,14.57533348]
[1764472326669,0.71,135.93,135.9,3.9767741]
[1764472328082,0.71,135.93,135.9,0.7]
[1764472329153,0.71,135.93,135.9,8.05801633]
[1764472330370,0.71,135.93,135.9,7.35801633]
[1764472330969,0.71,135.93,135.9,8.05801633]
[1764472334773,0.71,135.93,135.89,7.35887071]
[1764472335072,0.71,135.93,135.9,3.24]
[1764472336274,2.09736049,135.92,135.89,3.24]
[1764472336770,0.71,135.91,135.89,3.24]
[1764472336969,0.71,135.91,135.88,16.16917127]
[1764472337146,0.71,135.91,135.88,19.40917127]
[1764472337355,0.71,135.91,135.86,2.94800456]
[1764472337356,2.80736049,135.91,135.86,2.94800456]
[1764472337560,2.09736049,135.9,135.86,12.04994492]
[1764472337878,2.80736049,135.9,135.86,12.04994492]
[1764472338083,0.71,135.89,135.86,12.04994492]
[1764472338289,0.71,135.89,135.86,19.41028129]
[1764472338777,2.80736049,135.89,135.85,7.36064456]
[1764472338982,2.09736049,135.86,135.77,0.1]
[1764472339156,18.40622449,135.82,135.77,0.8]
[1764472339493,3.24,135.81,135.77,8.16536002]
[1764472339779,3.95,135.81,135.77,8.16536002]
[1764472342361,6.04736049,135.81,135.77,8.16536002]
[1764472343591,6.04736049,135.81,135.78,0.69]
[1764472344884,2.76736049,135.8,135.77,0.1]
[1764472345082,8.0437638,135.81,135.77,11.69730541]
[1764472345559,8.0437638,135.81,135.78,0.7]
[1764472345881,8.0437638,135.81,135.78,2.79736049]
[1764472347379,8.0437638,135.81,135.78,0.7]
[1764472350060,0.68,135.81,135.78,0.7]
[1764472350261,2.77736049,135.81,135.78,0.7]
[1764472353764,2.77736049,135.8,135.77,16.27533524]
[1764472354085,2.77736049,135.8,135.77,16.97533524]
[1764472355692,0.68,135.8,135.77,16.97533524]
[1764472356790,2.77736049,135.8,135.77,0.8]
[1764472358393,3.24,135.79,135.77,0.8]
[1764472359089,3.92,135.79,135.77,0.8]
[1764472359284,6.01736049,135.79,135.77,0.8]
[1764472359498,3.92,135.79,135.77,0.1]
[1764472359797,6.01736049,135.79,135.77,0.1]
[1764472361972,2.09736049,135.78,135.77,0.1]
[1764472363575,2.77736049,135.78,135.77,0.1]
[1764472366300,2.09736049,135.78,135.77,0.1]
[1764472367602,2.77736049,135.78,135.77,0.1]
[1764472370284,10.1422154,135.78,135.77,0.1]
[1764472371001,13.0934826,135.78,135.77,0.1]
[1764472374108,29.4023466,135.78,135.77,0.1]
[1764472375905,29.4023466,135.78,135.76,0.1]
[1764472376111,2.80736049,135.77,135.76,0.1]
[1764472376686,8.99928108,135.77,135.76,0.1]
[1764472377202,16.308864,135.75,135.74,0.1]
[1764472377397,19.548864,135.75,135.74,0.1]
[1764472377604,22.35622449,135.75,135.74,0.1]
[1764472377790,26.67332052,135.75,135.74,0.1]
[1764472378298,34.03980302,135.75,135.74,0.1]
[1764472378706,28.70244253,135.75,135.74,0.1]
[1764472379795,5.33736049,135.75,135.74,0.1]
[1764472380002,0.71,135.75,135.74,0.1]
[1764472380210,3.24,135.75,135.74,0.1]
[1764472381719,3.24,135.75,135.74,0.81]
[1764472381926,3.24,135.75,135.74,0.1]
[1764472383827,3.24,135.75,135.74,0.81]
[1764472384123,9.46345836,135.76,135.74,0.81]
[1764472384332,3.24,135.75,135.74,0.81]
[1764472386317,3.24,135.77,135.74,0.81]
[1764472386903,5.33736049,135.77,135.74,0.81]
[1764472387107,3.24,135.77,135.74,0.81]
[1764472387313,12.70275848,135.77,135.74,0.81]
[1764472387517,10.60539799,135.77,135.74,0.81]
[1764472388109,12.70275848,135.77,135.74,0.81]
[1764472390440,9.46275848,135.77,135.74,0.81]
[1764472390612,5.33736049,135.77,135.74,0.81]
[1764472390930,2.09736049,135.77,135.74,0.81]
[1764472391134,5.33736049,135.77,135.74,0.81]
[1764472393816,2.09736049,135.79,135.74,8.17681649]
[1764472394034,3.24,135.77,135.74,8.17681649]
[1764472394242,3.24,135.77,135.75,0.71]
[1764472394912,3.24,135.77,135.76,7.36593989]
[1764472395113,3.24,135.77,135.76,8.07593989]
[1764472395950,3.24,135.79,135.76,8.07593989]
[1764472396112,3.24,135.79,135.77,0.71]
[1764472396428,6.52481263,135.79,135.77,0.71]
[1764472396620,7.23481263,135.79,135.77,0.71]
[1764472396822,3.99481263,135.78,135.75,8.07642934]
[1764472400432,3.99481263,135.78,135.76,0.7]
[1764472401338,3.28481263,135.78,135.76,0.7]
[1764472401844,3.99481263,135.78,135.76,0.7]
[1764472402537,3.99481263,135.78,135.75,7.36610418]
[1764472402720,3.99481263,135.78,135.75,0.7]
[1764472403843,3.28481263,135.76,135.74,7.46702519]
[1764472404041,6.52481263,135.76,135.74,7.46702519]
[1764472404341,7.23481263,135.76,135.74,7.46702519]
[1764472407946,3.28481263,135.75,135.74,0.1]
[1764472408245,4.00481263,135.75,135.74,0.1]
[1764472410846,11.37129513,135.75,135.74,0.1]
[1764472412838,27.68015913,135.75,135.74,0.1]
[1764472414955,24.3953465,135.75,135.74,0.1]
[1764472415255,27.68015913,135.75,135.74,0.1]
[1764472418246,30.92015913,135.75,135.74,0.1]
[1764472425851,27.68015913,135.75,135.74,0.1]
[1764472426051,30.92015913,135.75,135.74,0.1]
[1764472432761,27.68015913,135.75,135.74,0.1]
[1764472432934,30.92015913,135.75,135.74,0.1]
[1764472434164,27.6353465,135.75,135.74,0.1]
[1764472434370,30.92015913,135.75,135.74,0.1]
[1764472441371,33.8727334,135.75,135.74,0.1]
[1764472442057,29.86792077,135.75,135.74,0.82]
[1764472442253,26.62792077,135.75,135.74,0.82]
[1764472442574,29.86792077,135.75,135.74,0.82]
[1764472442976,3.24,135.75,135.74,4.10481263]
[1764472445371,10.65055027,135.77,135.74,4.10481263]
[1764472445576,3.24,135.76,135.75,0.72]
[1764472448372,6.62481263,135.76,135.75,0.72]
[1764472450271,13.99075252,135.76,135.74,0.1]
[1764472450473,13.99075252,135.76,135.74,0.82]
[1764472452475,3.24,135.75,135.74,0.82]
[1764472454073,3.24,135.76,135.74,0.82]
[1764472460796,18.11757413,135.77,135.74,0.82]
[1764472461002,3.24,135.76,135.74,0.82]
[1764472461586,10.60607934,135.76,135.74,0.82]
[1764472461987,20.17613177,135.76,135.74,0.82]
[1764472464292,0.72,135.75,135.74,0.1]
[1764472464791,22.99882707,135.76,135.74,0.1]
[1764472464981,22.99882707,135.76,135.74,0.8]
[1764472465192,10.1591778,135.75,135.74,0.1]
[1764472465391,17.527212,135.75,135.74,0.1]
[1764472465685,14.7345167,135.75,135.74,0.1]
[1764472465870,7.3664825,135.75,135.74,0.1]
[1764472467995,16.83762923,135.75,135.74,0.1]
[1764472468978,7.3664825,135.75,135.74,0.1]
[1764472472475,9.47114673,135.76,135.74,0.81]
[1764472472681,3.24,135.76,135.74,2.9126953]
[1764472473193,3.24,135.76,135.75,0.71]
[1764472476999,3.24,135.77,135.75,0.71]
[1764472480996,9.46677574,135.8,135.75,10.17870437]
[1764472481306,3.24,135.79,135.75,10.17870437]
[1764472481506,3.24,135.79,135.76,0.71]
[1764472483991,6.0326953,135.79,135.76,0.71]
[1764472486708,5.3426953,135.79,135.76,0.71]
[1764472487290,3.24,135.79,135.76,0.71]
[1764472488017,29.01035424,135.82,135.78,2.1026953]
[1764472488199,39.16905861,135.82,135.79,2.8126953]
[1764472488399,29.70035424,135.82,135.79,2.8126953]
[1764472488909,11.2930711,135.82,135.79,2.8126953]
[1764472489314,11.2930711,135.82,135.8,0.71]
[1764472489315,7.3630711,135.82,135.8,0.71]
[1764472489632,3.24,135.81,135.8,0.71]
[1764472493702,3.24,135.84,135.8,10.17645782]
[1764472494015,3.24,135.84,135.81,2.1026953]
[1764472494211,3.24,135.84,135.81,2.8126953]
[1764472494403,3.24,135.84,135.82,0.71]
[1764472496027,7.36376252,135.85,135.82,0.71]
[1764472496223,3.24,135.84,135.82,0.71]
[1764472496525,3.24,135.84,135.82,2.8126953]
[1764472496722,3.24,135.84,135.82,0.71]
[1764472496922,3.24,135.84,135.82,2.8126953]
[1764472497225,3.24,135.84,135.82,0.71]
[1764472497533,0.69,135.83,135.8,0.71]
[1764472497711,0.69,135.83,135.79,2.1026953]
[1764472498124,0.69,135.83,135.8,0.71]
[1764472498321,31.80431172,135.84,135.8,0.71]
[1764472498529,13.39432648,135.84,135.8,0.71]
[1764472500109,3.24,135.83,135.8,0.71]
[1764472500737,3.24,135.83,135.79,7.36395909]
[1764472500738,0.69,135.82,135.79,7.36395909]
[1764472500915,2.7926953,135.82,135.77,2.1026953]
[1764472501130,3.24,135.81,135.8,0.71]
[1764472501512,7.36163118,135.84,135.8,2.8126953]
[1764472501706,19.4115761,135.84,135.81,2.1026953]
[1764472502015,10.60163118,135.84,135.81,2.8126953]
[1764472502214,10.60163118,135.84,135.82,0.71]
[1764472503130,16.308864,135.85,135.82,0.71]
[1764472503430,3.24,135.84,135.82,2.8126953]
[1764472503822,3.24,135.84,135.83,0.71]
[1764472517243,10.60160188,135.84,135.83,0.71]
[1764472518328,32.97714139,135.84,135.77,0.71]
[1764472518533,0.69,135.86,135.78,18.41213728]
[1764472518844,3.2815348,135.85,135.8,3.2815348]
[1764472519022,6.5215348,135.85,135.81,0.71]
[1764472519220,7.2115348,135.85,135.81,0.71]
[1764472519547,3.9715348,135.84,135.81,0.71]
[1764472519939,0.69,135.83,135.81,0.71]
[1764472520135,3.9715348,135.84,135.81,0.71]
[1764472520449,3.2815348,135.82,135.77,0.68]
[1764472520653,3.2815348,135.79,135.77,0.68]
[1764472521249,8.03420033,135.8,135.74,0.78]
[1764472521250,11.31638971,135.78,135.74,0.78]
[1764472521436,3.2815348,135.77,135.74,0.78]
[1764472521925,3.9515348,135.77,135.74,0.78]
[1764472522126,11.31698384,135.77,135.74,0.78]
[1764472522646,10.64698384,135.77,135.74,0.78]
[1764472523543,7.36544904,135.77,135.74,0.78]
[1764472524833,11.31698384,135.77,135.74,0.78]
[1764472526840,10.64698384,135.77,135.74,0.78]
[1764472527243,11.31698384,135.77,135.74,0.78]
[1764472527644,3.9515348,135.76,135.74,0.1]
[1764472528736,3.9515348,135.75,135.74,0.1]
[1764472528942,23.5003988,135.75,135.74,0.1]
[1764472529342,26.7819336,135.75,135.74,0.1]
[1764472530633,34.1484161,135.75,135.74,0.1]
[1764472530857,26.9568813,135.75,135.74,0.1]
[1764472531032,26.9153465,135.75,135.74,0.1]
[1764472531231,16.308864,135.75,135.74,0.1]
[1764472531435,26.9153465,135.75,135.74,0.1]
[1764472531932,19.568864,135.75,135.74,4.0615348]
[1764472533359,19.568864,135.75,135.74,0.78]
[1764472533660,26.9353465,135.75,135.74,0.78]
[1764472533958,3.26,135.75,135.74,0.78]
[1764472535351,7.36609817,135.76,135.74,0.78]
[1764472535551,3.26,135.75,135.74,0.78]
[1764472540862,104.4,135.77,135.74,0.78]
[1764472541169,3.24,135.76,135.74,4.0615348]
[1764472541667,3.24,135.76,135.75,0.68]
[1764472542164,3.24,135.76,135.75,3.9615348]
[1764472542668,3.24,135.76,135.75,0.68]
[1764472542867,3.24,135.76,135.74,0.78]
[1764472545340,3.24,135.76,135.74,4.0615348]
[1764472545551,3.24,135.76,135.75,0.68]
[1764472546740,3.24,135.76,135.74,4.0615348]
[1764472546946,3.24,135.77,135.75,3.9615348]
[1764472547346,3.24,135.77,135.76,0.68]
[1764472547768,7.36489371,135.78,135.76,0.68]
[1764472547946,8.03324427,135.81,135.77,3.2815348]
[1764472548152,3.24,135.79,135.77,3.2815348]
[1764472548356,3.24,135.79,135.78,0.68]
[1764472548757,7.36324427,135.81,135.78,3.9615348]
[1764472548951,10.60324427,135.81,135.78,3.9615348]
[1764472549160,10.60324427,135.81,135.79,0.68]
[1764472549362,3.24,135.81,135.79,3.9615348]
[1764472549743,3.24,135.81,135.8,0.68]
[1764472550374,7.3627529,135.82,135.8,0.68]
[1764472550375,3.24,135.82,135.8,0.68]
[1764472551070,3.24,135.82,135.8,3.9615348]
[1764472551267,3.24,135.82,135.8,0.68]
[1764472551574,3.24,135.83,135.81,3.9615348]
[1764472551769,0.67,135.85,135.81,3.9615348]
[1764472551967,3.24,135.84,135.82,3.9615348]
[1764472552549,3.24,135.84,135.82,0.68]
[1764472552749,3.24,135.84,135.82,3.9615348]
[1764472553472,3.24,135.84,135.83,0.68]
[1764472554271,3.24,135.84,135.82,3.9615348]
[1764472554972,3.24,135.84,135.82,0.68]
[1764472557471,20.2603988,135.86,135.82,8.04264755]
[1764472557675,20.2603988,135.86,135.83,0.68]
[1764472557676,3.24,135.85,135.83,0.68]
[1764472558575,10.60015487,135.87,135.84,3.2815348]
[1764472558776,11.27015487,135.87,135.83,3.9615348]
[1764472559194,11.27015487,135.87,135.84,0.68]
[1764472559479,3.91,135.87,135.84,0.68]
[1764472559653,3.24,135.87,135.84,0.68]
[1764472559856,10.59999318,135.87,135.84,0.68]
[1764472560364,0.2,135.89,135.86,3.2815348]
[1764472560569,0.2,135.89,135.88,3.2815348]
[1764472560970,0.2,135.89,135.88,3.9615348]
[1764472561279,0.2,135.89,135.86,0.82216157]
[1764472561482,3.2815348,135.88,135.84,0.68]
[1764472561656,4.1515348,135.89,135.85,0.68]
[1764472561860,0.67,135.88,135.85,0.68]
[1764472562070,0.67,135.88,135.85,3.9615348]
[1764472562383,8.22890982,135.89,135.86,0.68]
[1764472562956,11.46890982,135.89,135.86,0.68]
[1764472563283,11.46890982,135.89,135.86,3.9615348]
[1764472565580,11.46890982,135.89,135.82,47.04963658]
[1764472565581,0.2,135.89,135.87,3.9615348]
[1764472565773,3.44,135.89,135.88,3.2815348]
[1764472566566,4.11,135.89,135.87,3.2815348]
[1764472566867,3.44,135.89,135.87,3.2815348]
[1764472567078,3.44,135.89,135.86,3.9615348]
[1764472567465,3.44,135.89,135.87,3.9615348]
[1764472567666,3.44,135.89,135.87,3.2815348]
[1764472567882,4.11,135.89,135.86,11.32201129]
[1764472568675,3.44,135.89,135.86,11.32201129]
[1764472568879,4.11,135.89,135.86,11.32201129]
[1764472569695,4.11,135.89,135.87,3.2815348]
[1764472571981,3.44,135.89,135.87,3.9615348]
[1764472572701,0.67,135.88,135.86,3.2815348]
[1764472573683,10.79889385,135.89,135.86,3.2815348]
[1764472573876,10.79889385,135.89,135.86,3.9615348]
[1764472573877,4.11,135.89,135.86,3.9615348]
[1764472574986,4.11,135.89,135.87,3.2815348]
[1764472576002,4.11,135.89,135.86,3.9615348]
[1764472577604,11.46897699,135.89,135.86,3.9615348]
[1764472578606,0.67,135.88,135.84,2.09959205]
[1764472578913,0.67,135.88,135.84,2.77959205]
[1764472579090,0.67,135.88,135.85,2.09959205]
[1764472579405,2.76959205,135.88,135.84,2.77959205]
[1764472579607,2.76959205,135.88,135.84,0.68]
[1764472579908,0.67,135.87,135.84,0.68]
[1764472580104,3.24,135.86,135.83,2.09959205]
[1764472580304,3.24,135.86,135.82,2.09959205]
[1764472580608,10.16070078,135.85,135.8,2.76959205]
[1764472580989,0.7,135.84,135.8,2.76959205]
[1764472581195,3.24,135.83,135.8,2.09959205]
[1764472581390,3.24,135.83,135.79,10.13390459]
[1764472581592,3.94,135.83,135.8,0.67]
[1764472586109,6.03959205,135.83,135.8,0.67]
[1764472587102,5.33959205,135.83,135.79,7.36431254]
[1764472587301,0.65,135.82,135.79,8.04431254]
[1764472587601,5.98959205,135.83,135.8,0.68]
[1764472588194,3.24,135.82,135.8,0.68]
[1764472590912,107.14959205,135.86,135.81,2.09959205]
[1764472591212,3.24,135.85,135.81,2.09959205]
[1764472591410,3.89,135.85,135.82,0.68]
[1764472591719,11.25121175,135.85,135.82,0.68]
[1764472591897,0.65,135.84,135.81,8.04292892]
[1764472592098,0.65,135.84,135.8,9.46327903]
[1764472592400,2.74959205,135.84,135.8,8.04368698]
[1764472592814,2.74959205,135.84,135.81,0.68]
[1764472593518,0.65,135.84,135.81,0.68]
[1764472593710,10.60121175,135.85,135.81,8.04305801]
[1764472593905,11.25121175,135.85,135.81,8.04305801]
[1764472594110,11.25121175,135.85,135.82,0.68]
[1764472596220,13.3508038,135.85,135.82,0.68]
[1764472597618,2.74959205,135.84,135.8,0.68]
[1764472597915,2.74959205,135.84,135.79,2.09959205]
[1764472598298,0.65,135.83,135.8,0.68]
[1764472599521,8.01240146,135.83,135.8,0.68]
[1764472600207,8.01240146,135.83,135.8,2.77959205]
[1764472600810,3.89,135.82,135.8,2.09959205]
[1764472601604,0.65,135.81,135.78,2.09959205]
[1764472601819,0.65,135.81,135.77,0.68]
[1764472601820,0.65,135.81,135.77,2.77959205]
[1764472602012,2.74959205,135.81,135.77,0.68]
[1764472602530,0.65,135.8,135.77,0.68]
[1764472602899,8.01399533,135.8,135.77,0.68]
[1764472603724,3.24,135.79,135.77,0.68]
[1764472607602,3.89,135.79,135.77,0.68]
[1764472607801,3.89,135.79,135.76,8.04548968]
[1764472609508,3.24,135.79,135.77,0.68]
[1764472611224,10.60431532,135.79,135.75,9.4659646]
[1764472611406,11.25431532,135.79,135.76,0.68]
[1764472614936,8.01500125,135.78,135.75,0.68]
[1764472616715,7.36500125,135.78,135.75,0.68]
[1764472618135,8.07500125,135.78,135.75,0.68]
[1764472620339,0.71,135.77,135.74,0.77]
[1764472620543,3.24,135.76,135.74,0.77]
[1764472620724,5.33959205,135.76,135.74,0.1]
[1764472621042,6.04959205,135.76,135.74,0.1]
[1764472621342,3.95,135.76,135.74,0.1]
[1764472622120,11.31629859,135.76,135.74,0.1]
[1764472625927,0.71,135.75,135.74,0.1]
[1764472626329,13.41589064,135.76,135.74,0.1]
[1764472626728,0.71,135.75,135.74,0.1]
[1764472627851,8.0764825,135.75,135.74,0.1]